{"text_format":"3","workbook":"xlsx","n_sheets":1,"sheets":["庫存清單"],"not_rendered":{"images":1,"defined_names":3},"read":"whole","date_system":"1900"}

{"sheet":"庫存清單","index":0,"n_rows":28,"n_cols":13,"rows_kept":28}
[{"$nulls":12}," "]
[{"$nulls":10},"醒目提示要追加訂購的項目？","是"]
[null,"追加訂購","庫存識別碼","姓名","說明","單價","庫存數量","庫存價值","安全庫存","追加訂購時間 (天)","追加訂購數量","已停止供貨？"]
[null,{"$f":"IFERROR((Inventory_List_Table[[#This Row],[庫存數量]]<=Inventory_List_Table[[#This Row],[安全庫存]])*(Inventory_List_Table[[#This Row],[已停止供貨？]]=\"\")*價值醒目提示,0)","v":1},"IN0001","項目 1","說明 1",{"v":51,"d":"NT$51.00"},25,{"$f":"Inventory_List_Table[[#This Row],[單價]]*Inventory_List_Table[[#This Row],[庫存數量]]","v":{"v":1275,"d":"NT$1,275.00"}},29,13,50]
[null,{"$f":"IFERROR((Inventory_List_Table[[#This Row],[庫存數量]]<=Inventory_List_Table[[#This Row],[安全庫存]])*(Inventory_List_Table[[#This Row],[已停止供貨？]]=\"\")*價值醒目提示,0)","v":1},"IN0002","項目 2","說明 2",{"v":93,"d":"NT$93.00"},132,{"$f":"Inventory_List_Table[[#This Row],[單價]]*Inventory_List_Table[[#This Row],[庫存數量]]","v":{"v":12276,"d":"NT$12,276.00"}},231,4,50]
[null,{"$f":"IFERROR((Inventory_List_Table[[#This Row],[庫存數量]]<=Inventory_List_Table[[#This Row],[安全庫存]])*(Inventory_List_Table[[#This Row],[已停止供貨？]]=\"\")*價值醒目提示,0)","v":0},"IN0003","項目 3","說明 3",{"v":57,"d":"NT$57.00"},151,{"$f":"Inventory_List_Table[[#This Row],[單價]]*Inventory_List_Table[[#This Row],[庫存數量]]","v":{"v":8607,"d":"NT$8,607.00"}},114,11,150]
[null,{"$f":"IFERROR((Inventory_List_Table[[#This Row],[庫存數量]]<=Inventory_List_Table[[#This Row],[安全庫存]])*(Inventory_List_Table[[#This Row],[已停止供貨？]]=\"\")*價值醒目提示,0)","v":0},"IN0004","項目 4","說明 4",{"v":19,"d":"NT$19.00"},186,{"$f":"Inventory_List_Table[[#This Row],[單價]]*Inventory_List_Table[[#This Row],[庫存數量]]","v":{"v":3534,"d":"NT$3,534.00"}},158,6,50]
[null,{"$f":"IFERROR((Inventory_List_Table[[#This Row],[庫存數量]]<=Inventory_List_Table[[#This Row],[安全庫存]])*(Inventory_List_Table[[#This Row],[已停止供貨？]]=\"\")*價值醒目提示,0)","v":0},"IN0005","項目 5","說明 5",{"v":75,"d":"NT$75.00"},62,{"$f":"Inventory_List_Table[[#This Row],[單價]]*Inventory_List_Table[[#This Row],[庫存數量]]","v":{"v":4650,"d":"NT$4,650.00"}},39,12,50]
[null,{"$f":"IFERROR((Inventory_List_Table[[#This Row],[庫存數量]]<=Inventory_List_Table[[#This Row],[安全庫存]])*(Inventory_List_Table[[#This Row],[已停止供貨？]]=\"\")*價值醒目提示,0)","v":1},"IN0006","項目 6","說明 6",{"v":11,"d":"NT$11.00"},5,{"$f":"Inventory_List_Table[[#This Row],[單價]]*Inventory_List_Table[[#This Row],[庫存數量]]","v":{"v":55,"d":"NT$55.00"}},9,13,150]
[null,{"$f":"IFERROR((Inventory_List_Table[[#This Row],[庫存數量]]<=Inventory_List_Table[[#This Row],[安全庫存]])*(Inventory_List_Table[[#This Row],[已停止供貨？]]=\"\")*價值醒目提示,0)","v":0},"IN0007","項目 7","說明 7",{"v":56,"d":"NT$56.00"},58,{"$f":"Inventory_List_Table[[#This Row],[單價]]*Inventory_List_Table[[#This Row],[庫存數量]]","v":{"v":3248,"d":"NT$3,248.00"}},109,7,100,"是"]
[null,{"$f":"IFERROR((Inventory_List_Table[[#This Row],[庫存數量]]<=Inventory_List_Table[[#This Row],[安全庫存]])*(Inventory_List_Table[[#This Row],[已停止供貨？]]=\"\")*價值醒目提示,0)","v":1},"IN0008","項目 8","說明 8",{"v":38,"d":"NT$38.00"},101,{"$f":"Inventory_List_Table[[#This Row],[單價]]*Inventory_List_Table[[#This Row],[庫存數量]]","v":{"v":3838,"d":"NT$3,838.00"}},162,3,100]
[null,{"$f":"IFERROR((Inventory_List_Table[[#This Row],[庫存數量]]<=Inventory_List_Table[[#This Row],[安全庫存]])*(Inventory_List_Table[[#This Row],[已停止供貨？]]=\"\")*價值醒目提示,0)","v":0},"IN0009","項目 9","說明 9",{"v":59,"d":"NT$59.00"},122,{"$f":"Inventory_List_Table[[#This Row],[單價]]*Inventory_List_Table[[#This Row],[庫存數量]]","v":{"v":7198,"d":"NT$7,198.00"}},82,3,150]
[null,{"$f":"IFERROR((Inventory_List_Table[[#This Row],[庫存數量]]<=Inventory_List_Table[[#This Row],[安全庫存]])*(Inventory_List_Table[[#This Row],[已停止供貨？]]=\"\")*價值醒目提示,0)","v":1},"IN0010","項目 10","說明 10",{"v":50,"d":"NT$50.00"},175,{"$f":"Inventory_List_Table[[#This Row],[單價]]*Inventory_List_Table[[#This Row],[庫存數量]]","v":{"v":8750,"d":"NT$8,750.00"}},283,8,150]
[null,{"$f":"IFERROR((Inventory_List_Table[[#This Row],[庫存數量]]<=Inventory_List_Table[[#This Row],[安全庫存]])*(Inventory_List_Table[[#This Row],[已停止供貨？]]=\"\")*價值醒目提示,0)","v":1},"IN0011","項目 11","說明 11",{"v":59,"d":"NT$59.00"},176,{"$f":"Inventory_List_Table[[#This Row],[單價]]*Inventory_List_Table[[#This Row],[庫存數量]]","v":{"v":10384,"d":"NT$10,384.00"}},229,1,100]
[null,{"$f":"IFERROR((Inventory_List_Table[[#This Row],[庫存數量]]<=Inventory_List_Table[[#This Row],[安全庫存]])*(Inventory_List_Table[[#This Row],[已停止供貨？]]=\"\")*價值醒目提示,0)","v":1},"IN0012","項目 12","說明 12",{"v":18,"d":"NT$18.00"},22,{"$f":"Inventory_List_Table[[#This Row],[單價]]*Inventory_List_Table[[#This Row],[庫存數量]]","v":{"v":396,"d":"NT$396.00"}},36,12,50]
[null,{"$f":"IFERROR((Inventory_List_Table[[#This Row],[庫存數量]]<=Inventory_List_Table[[#This Row],[安全庫存]])*(Inventory_List_Table[[#This Row],[已停止供貨？]]=\"\")*價值醒目提示,0)","v":1},"IN0013","項目 13","說明 13",{"v":26,"d":"NT$26.00"},72,{"$f":"Inventory_List_Table[[#This Row],[單價]]*Inventory_List_Table[[#This Row],[庫存數量]]","v":{"v":1872,"d":"NT$1,872.00"}},102,9,100]
[null,{"$f":"IFERROR((Inventory_List_Table[[#This Row],[庫存數量]]<=Inventory_List_Table[[#This Row],[安全庫存]])*(Inventory_List_Table[[#This Row],[已停止供貨？]]=\"\")*價值醒目提示,0)","v":1},"IN0014","項目 14","說明 14",{"v":42,"d":"NT$42.00"},62,{"$f":"Inventory_List_Table[[#This Row],[單價]]*Inventory_List_Table[[#This Row],[庫存數量]]","v":{"v":2604,"d":"NT$2,604.00"}},83,2,100]
[null,{"$f":"IFERROR((Inventory_List_Table[[#This Row],[庫存數量]]<=Inventory_List_Table[[#This Row],[安全庫存]])*(Inventory_List_Table[[#This Row],[已停止供貨？]]=\"\")*價值醒目提示,0)","v":0},"IN0015","項目 15","說明 15",{"v":32,"d":"NT$32.00"},46,{"$f":"Inventory_List_Table[[#This Row],[單價]]*Inventory_List_Table[[#This Row],[庫存數量]]","v":{"v":1472,"d":"NT$1,472.00"}},23,15,50]
[null,{"$f":"IFERROR((Inventory_List_Table[[#This Row],[庫存數量]]<=Inventory_List_Table[[#This Row],[安全庫存]])*(Inventory_List_Table[[#This Row],[已停止供貨？]]=\"\")*價值醒目提示,0)","v":1},"IN0016","項目 16","說明 16",{"v":90,"d":"NT$90.00"},96,{"$f":"Inventory_List_Table[[#This Row],[單價]]*Inventory_List_Table[[#This Row],[庫存數量]]","v":{"v":8640,"d":"NT$8,640.00"}},180,3,50]
[null,{"$f":"IFERROR((Inventory_List_Table[[#This Row],[庫存數量]]<=Inventory_List_Table[[#This Row],[安全庫存]])*(Inventory_List_Table[[#This Row],[已停止供貨？]]=\"\")*價值醒目提示,0)","v":0},"IN0017","項目 17","說明 17",{"v":97,"d":"NT$97.00"},57,{"$f":"Inventory_List_Table[[#This Row],[單價]]*Inventory_List_Table[[#This Row],[庫存數量]]","v":{"v":5529,"d":"NT$5,529.00"}},98,12,50,"是"]
[null,{"$f":"IFERROR((Inventory_List_Table[[#This Row],[庫存數量]]<=Inventory_List_Table[[#This Row],[安全庫存]])*(Inventory_List_Table[[#This Row],[已停止供貨？]]=\"\")*價值醒目提示,0)","v":1},"IN0018","項目 18","說明 18",{"v":12,"d":"NT$12.00"},6,{"$f":"Inventory_List_Table[[#This Row],[單價]]*Inventory_List_Table[[#This Row],[庫存數量]]","v":{"v":72,"d":"NT$72.00"}},7,13,50]
[null,{"$f":"IFERROR((Inventory_List_Table[[#This Row],[庫存數量]]<=Inventory_List_Table[[#This Row],[安全庫存]])*(Inventory_List_Table[[#This Row],[已停止供貨？]]=\"\")*價值醒目提示,0)","v":1},"IN0019","項目 19","說明 19",{"v":82,"d":"NT$82.00"},143,{"$f":"Inventory_List_Table[[#This Row],[單價]]*Inventory_List_Table[[#This Row],[庫存數量]]","v":{"v":11726,"d":"NT$11,726.00"}},164,12,150]
[null,{"$f":"IFERROR((Inventory_List_Table[[#This Row],[庫存數量]]<=Inventory_List_Table[[#This Row],[安全庫存]])*(Inventory_List_Table[[#This Row],[已停止供貨？]]=\"\")*價值醒目提示,0)","v":0},"IN0020","項目 20","說明 20",{"v":16,"d":"NT$16.00"},124,{"$f":"Inventory_List_Table[[#This Row],[單價]]*Inventory_List_Table[[#This Row],[庫存數量]]","v":{"v":1984,"d":"NT$1,984.00"}},113,14,50]
[null,{"$f":"IFERROR((Inventory_List_Table[[#This Row],[庫存數量]]<=Inventory_List_Table[[#This Row],[安全庫存]])*(Inventory_List_Table[[#This Row],[已停止供貨？]]=\"\")*價值醒目提示,0)","v":0},"IN0021","項目 21","說明 21",{"v":19,"d":"NT$19.00"},112,{"$f":"Inventory_List_Table[[#This Row],[單價]]*Inventory_List_Table[[#This Row],[庫存數量]]","v":{"v":2128,"d":"NT$2,128.00"}},75,11,50]
[null,{"$f":"IFERROR((Inventory_List_Table[[#This Row],[庫存數量]]<=Inventory_List_Table[[#This Row],[安全庫存]])*(Inventory_List_Table[[#This Row],[已停止供貨？]]=\"\")*價值醒目提示,0)","v":0},"IN0022","項目 22","說明 22",{"v":24,"d":"NT$24.00"},182,{"$f":"Inventory_List_Table[[#This Row],[單價]]*Inventory_List_Table[[#This Row],[庫存數量]]","v":{"v":4368,"d":"NT$4,368.00"}},132,15,150]
[null,{"$f":"IFERROR((Inventory_List_Table[[#This Row],[庫存數量]]<=Inventory_List_Table[[#This Row],[安全庫存]])*(Inventory_List_Table[[#This Row],[已停止供貨？]]=\"\")*價值醒目提示,0)","v":0},"IN0023","項目 23","說明 23",{"v":29,"d":"NT$29.00"},106,{"$f":"Inventory_List_Table[[#This Row],[單價]]*Inventory_List_Table[[#This Row],[庫存數量]]","v":{"v":3074,"d":"NT$3,074.00"}},142,1,150,"是"]
[null,{"$f":"IFERROR((Inventory_List_Table[[#This Row],[庫存數量]]<=Inventory_List_Table[[#This Row],[安全庫存]])*(Inventory_List_Table[[#This Row],[已停止供貨？]]=\"\")*價值醒目提示,0)","v":0},"IN0024","項目 24","說明 24",{"v":75,"d":"NT$75.00"},173,{"$f":"Inventory_List_Table[[#This Row],[單價]]*Inventory_List_Table[[#This Row],[庫存數量]]","v":{"v":12975,"d":"NT$12,975.00"}},127,9,100]
[null,{"$f":"IFERROR((Inventory_List_Table[[#This Row],[庫存數量]]<=Inventory_List_Table[[#This Row],[安全庫存]])*(Inventory_List_Table[[#This Row],[已停止供貨？]]=\"\")*價值醒目提示,0)","v":0},"IN0025","項目 25","說明 25",{"v":14,"d":"NT$14.00"},28,{"$f":"Inventory_List_Table[[#This Row],[單價]]*Inventory_List_Table[[#This Row],[庫存數量]]","v":{"v":392,"d":"NT$392.00"}},21,8,50]